Body Name,Body,Service Division,Expense Type,Date Paid,Transaction Ref,Invoice Amount,Supplier Name
Boston Borough Council,http://statistics.data.gov.uk/id/local-authority/32UB,Property Services,Buildings Maintenance - Programmed,07/11/2023,30007647,"2,690.99 ",Glen Farrow UK LTD
Boston Borough Council,http://statistics.data.gov.uk/id/local-authority/32UB,Property Services,Clothing Uniforms And Laundry,02/11/2023,30007902,645.65 ,Safety Management Sales  (Smi Group)
Boston Borough Council,http://statistics.data.gov.uk/id/local-authority/32UB,Town Centre,Clothing Uniforms And Laundry,02/11/2023,30007902,645.65 ,Safety Management Sales  (Smi Group)
Boston Borough Council,http://statistics.data.gov.uk/id/local-authority/32UB,Operations,Maintenance,14/11/2023,30007999,321.00 ,Specialist Fleet Services LTD
Boston Borough Council,http://statistics.data.gov.uk/id/local-authority/32UB,Operations,Maintenance,28/11/2023,30008324,384.21 ,Specialist Fleet Services LTD
Boston Borough Council,http://statistics.data.gov.uk/id/local-authority/32UB,Operations,Maintenance,28/11/2023,30008325,632.98 ,Specialist Fleet Services LTD
Boston Borough Council,http://statistics.data.gov.uk/id/local-authority/32UB,Operations,Maintenance,30/11/2023,30008326,584.90 ,Specialist Fleet Services LTD
Boston Borough Council,http://statistics.data.gov.uk/id/local-authority/32UB,Operations,Maintenance,28/11/2023,30008328,927.84 ,Specialist Fleet Services LTD
Boston Borough Council,http://statistics.data.gov.uk/id/local-authority/32UB,Operations,Maintenance,28/11/2023,30008360,258.83 ,Specialist Fleet Services LTD
Boston Borough Council,http://statistics.data.gov.uk/id/local-authority/32UB,Operations,Maintenance,30/11/2023,30008362,291.68 ,Specialist Fleet Services LTD
Boston Borough Council,http://statistics.data.gov.uk/id/local-authority/32UB,Operations,Agency Staff,07/11/2023,30008398,"7,816.77 ",Comensura LTD
Boston Borough Council,http://statistics.data.gov.uk/id/local-authority/32UB,Operations,Maintenance,30/11/2023,30008452,291.68 ,Specialist Fleet Services LTD
Boston Borough Council,http://statistics.data.gov.uk/id/local-authority/32UB,Operations,Agency Staff,02/11/2023,30008458,"7,918.00 ",Comensura LTD
Boston Borough Council,http://statistics.data.gov.uk/id/local-authority/32UB,Leisure,Other Miscellaneous Expenses,14/11/2023,30008459,295.00 ,Gym Gear
Boston Borough Council,http://statistics.data.gov.uk/id/local-authority/32UB,Strategic Growth & Development,Grants and Contributions to Outside Bodies - No Service Received,02/11/2023,30008509,"5,259.00 ",Lincolnshire YMCA LTD
Boston Borough Council,http://statistics.data.gov.uk/id/local-authority/32UB,Property Services,Buildings Maintenance - Programmed,09/11/2023,30008518,580.26 ,Chubb Fire and Security LTD
Boston Borough Council,http://statistics.data.gov.uk/id/local-authority/32UB,Property Services,Gas,14/11/2023,30008519,"2,544.92 ",Calor Gas LTD
Boston Borough Council,http://statistics.data.gov.uk/id/local-authority/32UB,Property Services,Buildings Maintenance - Programmed,09/11/2023,30008520,269.79 ,ADT Fire And Security PLC
Boston Borough Council,http://statistics.data.gov.uk/id/local-authority/32UB,Communities,Bed and Breakfast Accommodation (Homelessness Service),02/11/2023,30008524,"2,118.60 ",Smart Move (Boston) LTD
Boston Borough Council,http://statistics.data.gov.uk/id/local-authority/32UB,Property Services,Buildings Maintenance - Programmed,09/11/2023,30008529,604.00 ,ADT Fire And Security PLC
Boston Borough Council,http://statistics.data.gov.uk/id/local-authority/32UB,Townscape Heritage,Other Miscellaneous Expenses,02/11/2023,30008582,"2,163.94 ",Heritage Trust of Lincolnshire LTD
Boston Borough Council,http://statistics.data.gov.uk/id/local-authority/32UB,Property Services,Buildings Maintenance - Programmed,09/11/2023,30008585,"1,750.00 ",Eon UK Energy Services
Boston Borough Council,http://statistics.data.gov.uk/id/local-authority/32UB,Property Services,Buildings Maintenance - Programmed,09/11/2023,30008586,700.00 ,Eon UK Energy Services
Boston Borough Council,http://statistics.data.gov.uk/id/local-authority/32UB,Property Services,Buildings Maintenance - Programmed,09/11/2023,30008587,350.00 ,Eon UK Energy Services
Boston Borough Council,http://statistics.data.gov.uk/id/local-authority/32UB,Property Services,Buildings Maintenance - Programmed,09/11/2023,30008588,"3,150.00 ",Eon UK Energy Services
Boston Borough Council,http://statistics.data.gov.uk/id/local-authority/32UB,Property Services,Buildings Maintenance - Programmed,09/11/2023,30008589,350.00 ,Eon UK Energy Services
Boston Borough Council,http://statistics.data.gov.uk/id/local-authority/32UB,Legal Services,Legal Fees,30/11/2023,30008590,"6,409.63 ",Lincolnshire County Council
Boston Borough Council,http://statistics.data.gov.uk/id/local-authority/32UB,Planning,Legal Fees,02/11/2023,30008595,"1,298.00 ",CMS Cameron McKenna Nabarro Olswang LLP
Boston Borough Council,http://statistics.data.gov.uk/id/local-authority/32UB,BTAC,Other Miscellaneous Expenses,07/11/2023,30008596,531.60 ,Singleton Event Services LTD
Boston Borough Council,http://statistics.data.gov.uk/id/local-authority/32UB,Operations,Vehicle Hire,23/11/2023,30008600,"4,840.00 ",SFS t/a Collett Transport Services
Boston Borough Council,http://statistics.data.gov.uk/id/local-authority/32UB,Building Control,Other Private Contractors,07/11/2023,30008604,"2,775.00 ",East Lindsey District Council
Boston Borough Council,http://statistics.data.gov.uk/id/local-authority/32UB,Land Charges & Licencing,Professional and Contractors Fees,09/11/2023,30008605,"1,983.29 ",Lincolnshire County Council
Boston Borough Council,http://statistics.data.gov.uk/id/local-authority/32UB,Communities,Professional Fees,22/11/2023,30008612,"2,900.00 ",Focus Consultants 2010 LLP
Boston Borough Council,http://statistics.data.gov.uk/id/local-authority/32UB,Legal Services,Staff Training Expenses (Non-Payroll),23/11/2023,30008614,"1,395.00 ",JUST IT TRAINING LIMITED
Boston Borough Council,http://statistics.data.gov.uk/id/local-authority/32UB,Strategic Economic Development Projects,Other Miscellaneous Expenses,02/11/2023,30008618,696.00 ,�Personal Information Redacted�
Boston Borough Council,http://statistics.data.gov.uk/id/local-authority/32UB,Council Tax & Benefits,Other Revenue Grants Reimbursements and Contributions (Government),07/11/2023,30008621,"10,042.00 ",Public Sector Partnership Services LTD
Boston Borough Council,http://statistics.data.gov.uk/id/local-authority/32UB,Operations,Furniture and Equipment,23/11/2023,30008622,281.67 ,Portable offices (Hire) LTD
Boston Borough Council,http://statistics.data.gov.uk/id/local-authority/32UB,Operations,Agency Staff,09/11/2023,30008623,"7,359.82 ",Comensura LTD
Boston Borough Council,http://statistics.data.gov.uk/id/local-authority/32UB,Leisure,Subscriptions to Organisations and Other Bodies,07/11/2023,30008624,"4,850.00 ",Good Boost
Boston Borough Council,http://statistics.data.gov.uk/id/local-authority/32UB,Operations,Maintenance,07/11/2023,30008627,899.89 ,Specialist Fleet Services LTD
Boston Borough Council,http://statistics.data.gov.uk/id/local-authority/32UB,Leisure,Gas,16/11/2023,30008628,"6,795.00 ",SDL Biomass LTD
Boston Borough Council,http://statistics.data.gov.uk/id/local-authority/32UB,Property Services,Buildings Maintenance - Programmed,09/11/2023,30008630,615.97 ,Glen Farrow UK LTD
Boston Borough Council,http://statistics.data.gov.uk/id/local-authority/32UB,Property Services,Buildings Maintenance - Programmed,09/11/2023,30008631,"1,667.71 ",Glen Farrow UK LTD
Boston Borough Council,http://statistics.data.gov.uk/id/local-authority/32UB,Property Services,Buildings Maintenance - Programmed,09/11/2023,30008632,749.33 ,Glen Farrow UK LTD
Boston Borough Council,http://statistics.data.gov.uk/id/local-authority/32UB,Operations,Other Miscellaneous Expenses,10/11/2023,30008634,"39,406.00 ",A and C Weber UK LTD
Boston Borough Council,http://statistics.data.gov.uk/id/local-authority/32UB,Bereavement,Equipment Lease Payments (Less than 12 months),23/11/2023,30008635,"6,655.00 ",The Yaboo Co LTD (Wesley Media)
Boston Borough Council,http://statistics.data.gov.uk/id/local-authority/32UB,Business Transformation,Postages,03/11/2023,30008641,290.00 ,Royal Mail
Boston Borough Council,http://statistics.data.gov.uk/id/local-authority/32UB,Strategic Growth & Development,Grants and Contributions to Outside Bodies - No Service Received,14/11/2023,30008644,500.00 ,Boston Woods Trust
Boston Borough Council,http://statistics.data.gov.uk/id/local-authority/32UB,BTAC,Advertising - Events,23/11/2023,30008645,429.34 ,Bauer Radio LTD
Boston Borough Council,http://statistics.data.gov.uk/id/local-authority/32UB,Communities,Other Miscellaneous Expenses,23/11/2023,30008646,363.30 ,thebigword
Boston Borough Council,http://statistics.data.gov.uk/id/local-authority/32UB,Townscape Heritage,Other Miscellaneous Expenses,09/11/2023,30008647,300.00 ,Shedtime
Boston Borough Council,http://statistics.data.gov.uk/id/local-authority/32UB,Finance,Public Sector Partnership Services,23/11/2023,30008648,"247,830.00 ",Public Sector Partnership Services LTD
Boston Borough Council,http://statistics.data.gov.uk/id/local-authority/32UB,Property Services,Other Communication Costs,28/11/2023,30008649,473.00 ,Flowbird Smart City UK LTD
Boston Borough Council,http://statistics.data.gov.uk/id/local-authority/32UB,Bereavement,Purchase Of Goods For Resale,14/11/2023,30008651,380.00 ,Lincolnshire Memorial Maintenance
Boston Borough Council,http://statistics.data.gov.uk/id/local-authority/32UB,Planning,Legal Fees,07/11/2023,30008653,"5,032.50 ",CMS Cameron McKenna Nabarro Olswang LLP
Boston Borough Council,http://statistics.data.gov.uk/id/local-authority/32UB,Leisure,Internet Broadband Payments,28/11/2023,30008655,368.00 ,Multidata LTD
Boston Borough Council,http://statistics.data.gov.uk/id/local-authority/32UB,Property Services,Agency Staff,28/11/2023,30008660,"8,315.98 ",Chase Services Group
Boston Borough Council,http://statistics.data.gov.uk/id/local-authority/32UB,Property Services,Agency Staff,28/11/2023,30008661,801.67 ,Chase Services Group
Boston Borough Council,http://statistics.data.gov.uk/id/local-authority/32UB,Leisure,Gas,23/11/2023,30008668,"4,750.00 ",SDL Biomass LTD
Boston Borough Council,http://statistics.data.gov.uk/id/local-authority/32UB,Economic Development,Professional Fees,07/11/2023,30008671,"7,687.00 ",East Midlands Railway EMR
Boston Borough Council,http://statistics.data.gov.uk/id/local-authority/32UB,Bereavement,Professional and Contractors Fees,14/11/2023,30008679,610.50 ,�Personal Information Redacted�
Boston Borough Council,http://statistics.data.gov.uk/id/local-authority/32UB,"Democratic, Civic & Electoral Services",External Printing and Design Costs,14/11/2023,30008680,"1,835.06 ",Civica Election Services LTD
Boston Borough Council,http://statistics.data.gov.uk/id/local-authority/32UB,"Democratic, Civic & Electoral Services",External Printing and Design Costs,14/11/2023,30008681,"1,711.70 ",Civica Election Services LTD
Boston Borough Council,http://statistics.data.gov.uk/id/local-authority/32UB,BTAC,Performers and Entertainers Fees,28/11/2023,30008683,"1,520.00 ",The Joker Entertainment
Boston Borough Council,http://statistics.data.gov.uk/id/local-authority/32UB,Environmental Health,Professional and Contractors Fees,09/11/2023,30008684,"1,120.83 ",Pestinator UK LTD
Boston Borough Council,http://statistics.data.gov.uk/id/local-authority/32UB,Bereavement,Professional and Contractors Fees,14/11/2023,30008686,555.00 ,�Personal Information Redacted�
Boston Borough Council,http://statistics.data.gov.uk/id/local-authority/32UB,Information Technology,Telephone and Mobiles,14/11/2023,30008688,"3,926.07 ",Public Sector Partnership Services LTD
Boston Borough Council,http://statistics.data.gov.uk/id/local-authority/32UB,Corporate,Purchase of Hardware,14/11/2023,30008689,"2,378.60 ",Public Sector Partnership Services LTD
Boston Borough Council,http://statistics.data.gov.uk/id/local-authority/32UB,Information Technology,Purchase of Hardware,14/11/2023,30008689,"2,378.60 ",Public Sector Partnership Services LTD
Boston Borough Council,http://statistics.data.gov.uk/id/local-authority/32UB,Information Technology,Computer Software Licence Costs,14/11/2023,30008690,"2,666.66 ",Public Sector Partnership Services LTD
Boston Borough Council,http://statistics.data.gov.uk/id/local-authority/32UB,Information Technology,Professional and Contractors Fees,14/11/2023,30008691,477.60 ,Public Sector Partnership Services LTD
Boston Borough Council,http://statistics.data.gov.uk/id/local-authority/32UB,Information Technology,Computer Software Licence Costs,14/11/2023,30008693,"9,069.82 ",East Lindsey District Council
Boston Borough Council,http://statistics.data.gov.uk/id/local-authority/32UB,Finance,Other Miscellaneous Expenses,30/11/2023,30008697,"1,261.41 ",Pay360 LTD
Boston Borough Council,http://statistics.data.gov.uk/id/local-authority/32UB,Corporate,Purchase of Hardware,23/11/2023,30008698,269.45 ,Periam and Williamson Ltd
Boston Borough Council,http://statistics.data.gov.uk/id/local-authority/32UB,Information Technology,Purchase of Hardware,23/11/2023,30008698,269.45 ,Periam and Williamson Ltd
Boston Borough Council,http://statistics.data.gov.uk/id/local-authority/32UB,Information Technology,Other Communication Costs,14/11/2023,30008700,"3,972.50 ",GCI National Business
Boston Borough Council,http://statistics.data.gov.uk/id/local-authority/32UB,Planning,Subscriptions to Organisations and Other Bodies,30/11/2023,30008703,300.00 ,Planning Jungle LTD
Boston Borough Council,http://statistics.data.gov.uk/id/local-authority/32UB,Building Control,Staff Training Expenses (Non-Payroll),09/11/2023,30008705,430.00 ,The Sandland Taylor Consultancy
Boston Borough Council,http://statistics.data.gov.uk/id/local-authority/32UB,Communities,Bed and Breakfast Accommodation (Homelessness Service),09/11/2023,30008708,329.00 ,Dellhaven Homes Limited
Boston Borough Council,http://statistics.data.gov.uk/id/local-authority/32UB,Communities,Bed and Breakfast Accommodation (Homelessness Service),16/11/2023,30008709,338.40 ,Dellhaven Homes Limited
Boston Borough Council,http://statistics.data.gov.uk/id/local-authority/32UB,Communities,Bed and Breakfast Accommodation (Homelessness Service),09/11/2023,30008710,420.00 ,The Lord Grey Hotel t/a The Lord Grey Ltd
Boston Borough Council,http://statistics.data.gov.uk/id/local-authority/32UB,Communities,Bed and Breakfast Accommodation (Homelessness Service),09/11/2023,30008711,420.00 ,The Lord Grey Hotel t/a The Lord Grey Ltd
Boston Borough Council,http://statistics.data.gov.uk/id/local-authority/32UB,Communities,Bed and Breakfast Accommodation (Homelessness Service),09/11/2023,30008712,385.00 ,The Lord Grey Hotel t/a The Lord Grey Ltd
Boston Borough Council,http://statistics.data.gov.uk/id/local-authority/32UB,Communities,Bed and Breakfast Accommodation (Homelessness Service),09/11/2023,30008713,"1,080.00 ",Fairfield Guest House
Boston Borough Council,http://statistics.data.gov.uk/id/local-authority/32UB,Communities,Bed and Breakfast Accommodation (Homelessness Service),09/11/2023,30008714,408.00 ,Fountain House
Boston Borough Council,http://statistics.data.gov.uk/id/local-authority/32UB,Communities,Bed and Breakfast Accommodation (Homelessness Service),23/11/2023,30008715,352.50 ,Dellhaven Homes Limited
Boston Borough Council,http://statistics.data.gov.uk/id/local-authority/32UB,Communities,Other Private Contractors,09/11/2023,30008717,"2,311.00 ",Julia Charles Event Management
Boston Borough Council,http://statistics.data.gov.uk/id/local-authority/32UB,Property Services,Other Communication Costs,30/11/2023,30008718,"1,196.00 ",Flowbird Smart City UK LTD
Boston Borough Council,http://statistics.data.gov.uk/id/local-authority/32UB,Operations,Agency Staff,16/11/2023,30008719,"7,833.86 ",Comensura LTD
Boston Borough Council,http://statistics.data.gov.uk/id/local-authority/32UB,Communities,Cleaning Contract,16/11/2023,30008721,800.00 ,Babi T&C Limited
Boston Borough Council,http://statistics.data.gov.uk/id/local-authority/32UB,Strategic Economic Development Projects,Professional Fees,14/11/2023,30008723,"1,566.00 ",Park Avenue Recruitment
Boston Borough Council,http://statistics.data.gov.uk/id/local-authority/32UB,Operations,Other Private Contractors,28/11/2023,30008724,"2,300.00 ",East Coast Access
Boston Borough Council,http://statistics.data.gov.uk/id/local-authority/32UB,Property Services,Other Communication Costs,30/11/2023,30008725,"1,196.00 ",Flowbird Smart City UK LTD
Boston Borough Council,http://statistics.data.gov.uk/id/local-authority/32UB,Strategic Economic Development Projects,Professional and Contractors Fees,14/11/2023,30008727,550.00 ,The Engaging People Company
Boston Borough Council,http://statistics.data.gov.uk/id/local-authority/32UB,Operations,Materials and Consumables,30/11/2023,30008728,"1,646.00 ",Boston Seeds Limited
Boston Borough Council,http://statistics.data.gov.uk/id/local-authority/32UB,Townscape Heritage,Other Miscellaneous Expenses,14/11/2023,30008732,764.00 ,Central Bank St Botolphs Church
Boston Borough Council,http://statistics.data.gov.uk/id/local-authority/32UB,Leisure,Professional and Contractors Fees,28/11/2023,30008734,"3,950.00 ",Sharpe Pritchard LLP
Boston Borough Council,http://statistics.data.gov.uk/id/local-authority/32UB,Finance,Professional and Contractors Fees,16/11/2023,30008735,"16,800.00 ",Lincolnshire County Council
Boston Borough Council,http://statistics.data.gov.uk/id/local-authority/32UB,Property Services,Furniture and Equipment,16/11/2023,30008764,931.00 ,Nerg
Boston Borough Council,http://statistics.data.gov.uk/id/local-authority/32UB,Communities,Furniture and Equipment,30/11/2023,30008769,552.00 ,Solon Security Limited
Boston Borough Council,http://statistics.data.gov.uk/id/local-authority/32UB,Leisure,Gas,28/11/2023,30008771,"2,715.00 ",SDL Biomass LTD
Boston Borough Council,http://statistics.data.gov.uk/id/local-authority/32UB,Property Services,Professional and Contractors Fees,23/11/2023,30008773,"1,485.00 ",Freeths LLP
Boston Borough Council,http://statistics.data.gov.uk/id/local-authority/32UB,Operations,Other Private Contractors,23/11/2023,30008774,"9,550.00 ",Enfortis Limited
Boston Borough Council,http://statistics.data.gov.uk/id/local-authority/32UB,Economic Development,Professional and Contractors Fees,14/11/2023,30008775,"1,250.00 ",Eddisons
Boston Borough Council,http://statistics.data.gov.uk/id/local-authority/32UB,Environmental Health,Other Private Contractors,23/11/2023,30008776,784.80 ,UK Health Security Agency
Boston Borough Council,http://statistics.data.gov.uk/id/local-authority/32UB,Property Services,Buildings Maintenance - Programmed,16/11/2023,30008777,800.00 ,Lives
Boston Borough Council,http://statistics.data.gov.uk/id/local-authority/32UB,Operations,Materials and Consumables,28/11/2023,30008778,328.55 ,The Boston Sign Company
Boston Borough Council,http://statistics.data.gov.uk/id/local-authority/32UB,Operations,Maintenance,28/11/2023,30008778,"1,320.00 ",The Boston Sign Company
Boston Borough Council,http://statistics.data.gov.uk/id/local-authority/32UB,Strategic Growth & Development,Grants and Contributions to Outside Bodies - No Service Received,14/11/2023,30008781,"4,650.00 ",Woodcock Kindling Supplies Ltd
Boston Borough Council,http://statistics.data.gov.uk/id/local-authority/32UB,Communities,Bed and Breakfast Accommodation (Homelessness Service),14/11/2023,30008784,"1,413.80 ",Smart Move (Boston) LTD
Boston Borough Council,http://statistics.data.gov.uk/id/local-authority/32UB,Bereavement,Purchase Of Goods For Resale,23/11/2023,30008786,441.00 ,The Yaboo Co LTD (Wesley Media)
Boston Borough Council,http://statistics.data.gov.uk/id/local-authority/32UB,Communities,Other Miscellaneous Expenses,22/11/2023,30008787,581.71 ,Boston Borough Council
Boston Borough Council,http://statistics.data.gov.uk/id/local-authority/32UB,Operations,Tyres,28/11/2023,30008797,"2,856.07 ",BA Bush and Son LTD
Boston Borough Council,http://statistics.data.gov.uk/id/local-authority/32UB,Information Technology,Telephone and Mobiles,06/11/2023,30008799,583.64 ,British Telecommunications Plc
Boston Borough Council,http://statistics.data.gov.uk/id/local-authority/32UB,Leisure,Furniture and Equipment,06/11/2023,30008800,590.46 ,Pulse Fitness LTD
Boston Borough Council,http://statistics.data.gov.uk/id/local-authority/32UB,Information Technology,Computer Software Licence Costs,28/11/2023,30008801,"4,213.33 ",Bartec Municipal Technologies LTD
Boston Borough Council,http://statistics.data.gov.uk/id/local-authority/32UB,BTAC,Performers and Entertainers Fees,28/11/2023,30008802,380.00 ,The Joker Entertainment
Boston Borough Council,http://statistics.data.gov.uk/id/local-authority/32UB,Communities,Bed and Breakfast Accommodation (Homelessness Service),30/11/2023,30008803,338.40 ,Dellhaven Homes Limited
Boston Borough Council,http://statistics.data.gov.uk/id/local-authority/32UB,Communities,Bed and Breakfast Accommodation (Homelessness Service),16/11/2023,30008804,840.00 ,The Lord Grey Hotel t/a The Lord Grey Ltd
Boston Borough Council,http://statistics.data.gov.uk/id/local-authority/32UB,Operations,Vehicle Hire,28/11/2023,30008805,325.00 ,Phil Haines Coaches LTD
Boston Borough Council,http://statistics.data.gov.uk/id/local-authority/32UB,Operations,Fuel and Oil,06/11/2023,30008806,"5,651.49 ",Fuelcard Services Ltd
Boston Borough Council,http://statistics.data.gov.uk/id/local-authority/32UB,Operations,Maintenance,28/11/2023,30008808,"25,928.93 ",Specialist Fleet Services LTD
Boston Borough Council,http://statistics.data.gov.uk/id/local-authority/32UB,Operations,Maintenance,23/11/2023,30008809,"25,928.93 ",Specialist Fleet Services LTD
Boston Borough Council,http://statistics.data.gov.uk/id/local-authority/32UB,Operations,Fuel and Oil,10/11/2023,30008816,493.93 ,Fuelcard Services Ltd
Boston Borough Council,http://statistics.data.gov.uk/id/local-authority/32UB,Finance,Banking Charges,10/11/2023,30008819,"2,123.94 ",HSBC
Boston Borough Council,http://statistics.data.gov.uk/id/local-authority/32UB,Property Services,Professional and Contractors Fees,23/11/2023,30008824,524.25 ,Chipside LTD
Boston Borough Council,http://statistics.data.gov.uk/id/local-authority/32UB,Finance,Internal Drainage Board Levies,01/11/2023,30008841,"38,981.00 ",Welland  Deepings Internal Drain Board
Boston Borough Council,http://statistics.data.gov.uk/id/local-authority/32UB,Leisure,Catering (Non-Payroll),15/11/2023,30008843,298.87 ,Booker
Boston Borough Council,http://statistics.data.gov.uk/id/local-authority/32UB,Property Services,Grants and Contributions to Outside Bodies - No Service Received,22/11/2023,30008844,"19,739.48 ",Lincolnshire County Council
Boston Borough Council,http://statistics.data.gov.uk/id/local-authority/32UB,Leisure,Gas,30/11/2023,30008851,"4,810.00 ",SDL Biomass LTD
Boston Borough Council,http://statistics.data.gov.uk/id/local-authority/32UB,Property Services,Clothing Uniforms And Laundry,30/11/2023,30008857,252.25 ,Keltic Clothing
Boston Borough Council,http://statistics.data.gov.uk/id/local-authority/32UB,Operations,Vehicle Hire,28/11/2023,30008858,"1,200.00 ",Phil Haines Coaches LTD
Boston Borough Council,http://statistics.data.gov.uk/id/local-authority/32UB,Operations,Vehicle Hire,28/11/2023,30008859,500.00 ,Phil Haines Coaches LTD
Boston Borough Council,http://statistics.data.gov.uk/id/local-authority/32UB,Operations,Vehicle Hire,28/11/2023,30008860,850.00 ,Phil Haines Coaches LTD
Boston Borough Council,http://statistics.data.gov.uk/id/local-authority/32UB,Operations,Vehicle Hire,23/11/2023,30008863,850.00 ,Phil Haines Coaches LTD
Boston Borough Council,http://statistics.data.gov.uk/id/local-authority/32UB,Business Transformation,Postages,22/11/2023,30008871,523.21 ,Royal Mail
Boston Borough Council,http://statistics.data.gov.uk/id/local-authority/32UB,Business Transformation,Postages,28/11/2023,30008872,335.61 ,Royal Mail
Boston Borough Council,http://statistics.data.gov.uk/id/local-authority/32UB,Information Technology,Telephone and Mobiles,22/11/2023,30008873,"1,524.29 ",Vodafone LTD (Corporate)
Boston Borough Council,http://statistics.data.gov.uk/id/local-authority/32UB,Property Services,Other Private Contractors,23/11/2023,30008875,"1,284.20 ",Kings Armoured Security Services LTD
Boston Borough Council,http://statistics.data.gov.uk/id/local-authority/32UB,Property Services,Buildings Maintenance - Programmed,22/11/2023,30008876,290.00 ,�Personal Information Redacted�
Boston Borough Council,http://statistics.data.gov.uk/id/local-authority/32UB,Strategic Growth & Development,Professional Fees,22/11/2023,30008880,954.31 ,Capsticks Solicitors LLP
Boston Borough Council,http://statistics.data.gov.uk/id/local-authority/32UB,Property Services,Professional and Contractors Fees,23/11/2023,30008886,528.00 ,Freeths LLP
Boston Borough Council,http://statistics.data.gov.uk/id/local-authority/32UB,Bereavement,Gas,10/11/2023,30008898,"5,302.93 ",Espo Gas and Electricity
Boston Borough Council,http://statistics.data.gov.uk/id/local-authority/32UB,Heritage,Gas,10/11/2023,30008901,878.59 ,Espo Gas and Electricity
Boston Borough Council,http://statistics.data.gov.uk/id/local-authority/32UB,Property Services,Gas,10/11/2023,30008902,"1,172.72 ",Espo Gas and Electricity
Boston Borough Council,http://statistics.data.gov.uk/id/local-authority/32UB,Operations,Agency Staff,23/11/2023,30008904,"8,182.82 ",Comensura LTD
Boston Borough Council,http://statistics.data.gov.uk/id/local-authority/32UB,Communities,Grants and Contributions to Outside Bodies - No Service Received,22/11/2023,30008907,"3,151.00 ",Obam Lift Services LTD
Boston Borough Council,http://statistics.data.gov.uk/id/local-authority/32UB,Property Services,Buildings Maintenance - Programmed,30/11/2023,30008913,"1,470.77 ",Periam and Williamson Ltd
Boston Borough Council,http://statistics.data.gov.uk/id/local-authority/32UB,Property Services,Buildings Maintenance - Programmed,30/11/2023,30008914,480.09 ,Periam and Williamson Ltd
Boston Borough Council,http://statistics.data.gov.uk/id/local-authority/32UB,Communities,Grants and Contributions to Outside Bodies - No Service Received,23/11/2023,30008919,"6,136.33 ",JH Smithson and Son LTD
Boston Borough Council,http://statistics.data.gov.uk/id/local-authority/32UB,Communities,Grants and Contributions to Outside Bodies - No Service Received,28/11/2023,30008920,"1,292.00 ",Sibjon Builders
Boston Borough Council,http://statistics.data.gov.uk/id/local-authority/32UB,Strategic Economic Development Projects,Professional Fees,23/11/2023,30008924,"2,610.00 ",Park Avenue Recruitment
Boston Borough Council,http://statistics.data.gov.uk/id/local-authority/32UB,Building Control,Other Private Contractors,23/11/2023,30008926,359.90 ,East Lindsey District Council
Boston Borough Council,http://statistics.data.gov.uk/id/local-authority/32UB,Economic Development,Professional and Contractors Fees,28/11/2023,30008928,"51,137.45 ",Community Ventures
Boston Borough Council,http://statistics.data.gov.uk/id/local-authority/32UB,Strategic Economic Development Projects,Professional and Contractors Fees,28/11/2023,30008934,"2,610.00 ",Park Avenue Recruitment
Boston Borough Council,http://statistics.data.gov.uk/id/local-authority/32UB,Operations,Maintenance,23/11/2023,30008941,"5,730.00 ",Peter Smith Commercials LTD
Boston Borough Council,http://statistics.data.gov.uk/id/local-authority/32UB,Operations,Maintenance,23/11/2023,30008943,"6,750.00 ",Peter Smith Commercials LTD
Boston Borough Council,http://statistics.data.gov.uk/id/local-authority/32UB,Business Transformation,Postages,30/11/2023,30008944,593.22 ,Royal Mail
Boston Borough Council,http://statistics.data.gov.uk/id/local-authority/32UB,Operations,Other Miscellaneous Expenses,23/11/2023,30008945,350.00 ,SG Services (Boston) LTD
Boston Borough Council,http://statistics.data.gov.uk/id/local-authority/32UB,Operations,Other Private Contractors,23/11/2023,30008949,280.00 ,SG Services (Boston) LTD
Boston Borough Council,http://statistics.data.gov.uk/id/local-authority/32UB,Operations,Other Miscellaneous Expenses,23/11/2023,30008958,280.00 ,SG Services (Boston) LTD
Boston Borough Council,http://statistics.data.gov.uk/id/local-authority/32UB,Economic Development,Professional and Contractors Fees,30/11/2023,30008968,"3,200.00 ",The Boston Sign Company
Boston Borough Council,http://statistics.data.gov.uk/id/local-authority/32UB,Operations,Stationery,28/11/2023,30008970,260.00 ,The Boston Sign Company
Boston Borough Council,http://statistics.data.gov.uk/id/local-authority/32UB,Operations,Maintenance,28/11/2023,30008970,435.00 ,The Boston Sign Company
Boston Borough Council,http://statistics.data.gov.uk/id/local-authority/32UB,Credit Control,Other Private Contractors,30/11/2023,30008974,"1,614.00 ",Transunion Intermational UK limited
Boston Borough Council,http://statistics.data.gov.uk/id/local-authority/32UB,Operations,Fuel and Oil,30/11/2023,30008975,881.90 ,Pace Fuelcare
Boston Borough Council,http://statistics.data.gov.uk/id/local-authority/32UB,Communities,Other Private Contractors,30/11/2023,30008979,"1,500.00 ",�Personal Information Redacted�
Boston Borough Council,http://statistics.data.gov.uk/id/local-authority/32UB,Communities,Bed and Breakfast Accommodation (Homelessness Service),28/11/2023,30008981,845.00 ,Smart Move (Boston) LTD
Boston Borough Council,http://statistics.data.gov.uk/id/local-authority/32UB,Communities,Rent Payments,28/11/2023,30008982,"3,306.98 ",Lincolnshire Housing Partnership
Boston Borough Council,http://statistics.data.gov.uk/id/local-authority/32UB,BTAC,Equipment Lease Payments (Less than 12 months),30/11/2023,30008983,356.00 ,National Radio Bank (Roadphone)
Boston Borough Council,http://statistics.data.gov.uk/id/local-authority/32UB,Townscape Heritage,Other Miscellaneous Expenses,28/11/2023,30008990,290.00 ,Mrs Mary Marson T/A Rag Rug
Boston Borough Council,http://statistics.data.gov.uk/id/local-authority/32UB,Communities,Rent Payments,28/11/2023,30008991,770.00 ,The Lord Grey Hotel t/a The Lord Grey Ltd
Boston Borough Council,http://statistics.data.gov.uk/id/local-authority/32UB,Environmental Health,Grants and Contributions to Outside Bodies - No Service Received,30/11/2023,30008994,"1,825.00 ",Carr Funeral Service
Boston Borough Council,http://statistics.data.gov.uk/id/local-authority/32UB,Leisure,Furniture and Equipment,30/11/2023,30009015,"1,468.92 ",Nerg
Boston Borough Council,http://statistics.data.gov.uk/id/local-authority/32UB,Operations,Other Miscellaneous Expenses,30/11/2023,30009021,520.00 ,SG Services (Boston) LTD
Boston Borough Council,http://statistics.data.gov.uk/id/local-authority/32UB,Operations,Other Private Contractors,28/11/2023,30009022,380.00 ,SG Services (Boston) LTD
Boston Borough Council,http://statistics.data.gov.uk/id/local-authority/32UB,BTAC,Advertising - Events,28/11/2023,30009027,550.00 ,Radiant Media LTD
Boston Borough Council,http://statistics.data.gov.uk/id/local-authority/32UB,Communities,Grants and Contributions to Outside Bodies - No Service Received,28/11/2023,30009034,"5,679.15 ",Sibjon Builders
Boston Borough Council,http://statistics.data.gov.uk/id/local-authority/32UB,Information Technology,Telephone and Mobiles,28/11/2023,30009035,476.82 ,Vodafone LTD (Corporate)
Boston Borough Council,http://statistics.data.gov.uk/id/local-authority/32UB,Communities,Grants and Contributions to Outside Bodies - No Service Received,28/11/2023,30009044,"6,350.47 ",Mark Donner LTD
Boston Borough Council,http://statistics.data.gov.uk/id/local-authority/32UB,Communities,Grants and Contributions to Outside Bodies - No Service Received,30/11/2023,30009051,"1,891.42 ",Baptist Building and Roofing LTD
Boston Borough Council,http://statistics.data.gov.uk/id/local-authority/32UB,Communities,Grants and Contributions to Outside Bodies - No Service Received,30/11/2023,30009052,"7,661.24 ",Baptist Building and Roofing LTD
Boston Borough Council,http://statistics.data.gov.uk/id/local-authority/32UB,Communities,Computer Software Licence Costs,30/11/2023,30009054,370.00 ,Symetri LTD
Boston Borough Council,http://statistics.data.gov.uk/id/local-authority/32UB,Communities,Bed and Breakfast Accommodation (Homelessness Service),30/11/2023,30009057,"5,192.50 ",Anglia Motel
Boston Borough Council,http://statistics.data.gov.uk/id/local-authority/32UB,Communities,Bed and Breakfast Accommodation (Homelessness Service),30/11/2023,30009067,740.00 ,Smart Move (Boston) LTD
Boston Borough Council,http://statistics.data.gov.uk/id/local-authority/32UB,Council Tax & Benefits,Council Tax Precept - Lincolnshire Police,17/11/2023,30009074,"587,502.48 ",Police and Crime Commissioner For Lincolnshire
Boston Borough Council,http://statistics.data.gov.uk/id/local-authority/32UB,Finance,Council Tax Precept - Lincolnshire Police,17/11/2023,30009074,"587,502.48 ",Police and Crime Commissioner For Lincolnshire
Boston Borough Council,http://statistics.data.gov.uk/id/local-authority/32UB,Council Tax & Benefits,Business Rates - Share of Income Lincolnshire County Council,17/11/2023,30009075,"172,980.10 ",Lincolnshire County Council
Boston Borough Council,http://statistics.data.gov.uk/id/local-authority/32UB,Finance,Business Rates - Share of Income Lincolnshire County Council,17/11/2023,30009075,"172,980.10 ",Lincolnshire County Council
Boston Borough Council,http://statistics.data.gov.uk/id/local-authority/32UB,Council Tax & Benefits,Business Rates - Share of Income Central Government,17/11/2023,30009075,"3,033,129.63 ",Lincolnshire County Council
Boston Borough Council,http://statistics.data.gov.uk/id/local-authority/32UB,Finance,Business Rates - Share of Income Central Government,17/11/2023,30009075,"3,033,129.63 ",Lincolnshire County Council
Boston Borough Council,http://statistics.data.gov.uk/id/local-authority/32UB,Grant Payments,Non-Ringfenced Government Grants - S31 Grant,17/11/2023,30009076,"1,105,594.00 ",Department for levelling Up Housing & Communities
Boston Borough Council,http://statistics.data.gov.uk/id/local-authority/32UB,Grant Payments,Business Rates Tariff,17/11/2023,30009077,"419,744.00 ",Lincolnshire County Council
Boston Borough Council,http://statistics.data.gov.uk/id/local-authority/32UB,Finance,Electricity,17/11/2023,30009078,"45,482.73 ",TotalEnergies
Boston Borough Council,http://statistics.data.gov.uk/id/local-authority/32UB,Land Charges & Licencing,Professional and Contractors Fees,17/11/2023,30009080,"1,596.00 ",Disclosure and Barring Service
Boston Borough Council,http://statistics.data.gov.uk/id/local-authority/32UB,Operations,Fuel and Oil,13/11/2023,30009081,"2,450.54 ",Fuelcard Services Ltd
Boston Borough Council,http://statistics.data.gov.uk/id/local-authority/32UB,Operations,Fuel and Oil,13/11/2023,30009082,"3,445.29 ",Fuelcard Services Ltd
Boston Borough Council,http://statistics.data.gov.uk/id/local-authority/32UB,Operations,Fuel and Oil,13/11/2023,30009091,293.38 ,Fuelcard Services Ltd
Boston Borough Council,http://statistics.data.gov.uk/id/local-authority/32UB,BTAC,Water and Sewerage Charges,24/11/2023,30009093,356.71 ,Wave
Boston Borough Council,http://statistics.data.gov.uk/id/local-authority/32UB,Property Services,Water and Sewerage Charges,24/11/2023,30009093,356.71 ,Wave
Boston Borough Council,http://statistics.data.gov.uk/id/local-authority/32UB,Leisure,Catering (Non-Payroll),15/11/2023,30009097,615.46 ,Booker
Boston Borough Council,http://statistics.data.gov.uk/id/local-authority/32UB,Leisure,Catering (Non-Payroll),15/11/2023,30009098,624.42 ,Booker
Boston Borough Council,http://statistics.data.gov.uk/id/local-authority/32UB,Finance,Postages,20/11/2023,30009099,281.38 ,imail
Boston Borough Council,http://statistics.data.gov.uk/id/local-authority/32UB,Operations,Fuel and Oil,20/11/2023,30009100,"5,658.22 ",Fuelcard Services Ltd
